fUST/lending_fUST_20250626
["ID","MTS","AMOUNT","RATE_DAILY","PERIOD"]
[367689741,1750895446240,-495.0,0.00018904,2]
[367689742,1750895446250,-460.0,0.00018904,2]
[367689743,1750895446259,-2506.09,0.00018904,2]
[367689744,1750895446269,-494.86,0.00018904,2]
[367689745,1750895446278,-460.0,0.00018904,2]
[367689746,1750895446288,-460.0,0.00018904,2]
[367689747,1750895446298,-460.0,0.00018904,2]
[367689748,1750895446308,-460.0,0.00018904,2]
[367689749,1750895446318,-2044.87,0.00018904,2]
[367689750,1750895446328,-460.0,0.00018904,2]
[367689751,1750895446338,-711.86,0.00018904,2]
[367689752,1750895446348,-460.0,0.00018904,2]
[367689753,1750895446357,-460.0,0.00018904,2]
[367689754,1750895446367,-460.0,0.00018904,2]
[367689755,1750895446376,-460.0,0.00018904,2]
[367689756,1750895446385,-758.7674914,0.00018932,2]
[367689757,1750895446395,-366.0085437,0.00018932,2]
[367689758,1750895446404,-366.0085437,0.00018932,2]
[367689759,1750895446413,-366.0085437,0.00018932,2]
[367689760,1750895446428,-26547.4548612,0.00019,7]
[367689761,1750895446438,-12558.06783089,0.00019,7]
[367689762,1750895446447,-213.69531788,0.00019,7]
[367689763,1750895446456,-846.80634355,0.00019,7]
[367689764,1750895446466,-1127.67210733,0.00019003,2]
[367689765,1750895446475,-928.84657131,0.00019072,2]
[367689766,1750895446484,-48744.14476564,0.000191,7]
[367689767,1750895446494,-213.69531788,0.000191,7]
[367689768,1750895446503,-244.45,0.00019178,2]
[367689769,1750895446513,-460.0,0.00019178,2]
[367689770,1750895446525,-460.0,0.00019178,2]
[367689771,1750895446535,-460.0,0.00019178,2]
[367689772,1750895446545,-818.77,0.00019178,2]
[367689773,1750895446555,-460.0,0.00019178,2]
[367689774,1750895446564,-460.0,0.00019178,2]
[367689775,1750895446573,-905.56,0.00019178,2]
[367689776,1750895446583,-460.0,0.00019178,2]
[367689777,1750895446592,-557.61929492,0.00019178,2]
[367689778,1750895446602,-930.61,0.00019178,2]
[367689779,1750895446611,-460.0,0.00019178,2]
[367689780,1750895446621,-580.77,0.00019178,2]
[367689781,1750895446630,-460.0,0.00019178,2]
[367689782,1750895446640,-774.21,0.00019178,2]
[367689783,1750895446650,-460.0,0.00019178,2]
[367689784,1750895446660,-982.39,0.00019178,2]
[367689785,1750895446670,-495.0,0.00019178,2]
[367689786,1750895446680,-460.0,0.00019178,2]
[367689787,1750895446690,-2506.09,0.00019178,2]
[367689788,1750895446699,-494.86,0.00019178,2]
[367689789,1750895446709,-460.0,0.00019178,2]
[367689790,1750895446719,-460.0,0.00019178,2]
[367689791,1750895446728,-460.0,0.00019178,2]
[367689792,1750895446738,-460.0,0.00019178,2]
[367689793,1750895446748,-2044.87,0.00019178,2]
[367689794,1750895446758,-460.0,0.00019178,2]
[367689795,1750895446767,-711.86,0.00019178,2]
[367689796,1750895446776,-460.0,0.00019178,2]
[367689798,1750895446785,-460.0,0.00019178,2]
[367689800,1750895446795,-460.0,0.00019178,2]
[367689802,1750895446804,-460.0,0.00019178,2]
[367689804,1750895446813,-212.303417,0.00019178,2]
[367689806,1750895446823,-500.0,0.0001927,2]
[367689808,1750895446831,-928.84657131,0.00019383,2]
[367689810,1750895446840,-222.968196,0.00019452,2]
[367689812,1750895446850,-222.968196,0.00019452,2]
[367689815,1750895446859,-460.0,0.00019452,2]
[367689817,1750895446868,-488.89022097,0.00019452,2]
[367689819,1750895446878,-460.0,0.00019452,2]
[367689821,1750895446887,-818.77,0.00019452,2]
[367689823,1750895446897,-460.0,0.00019452,2]
[367689825,1750895446906,-460.0,0.00019452,2]
[367689827,1750895446916,-905.56,0.00019452,2]
[367689829,1750895446925,-460.0,0.00019452,2]
[367689831,1750895446934,-930.61,0.00019452,2]
[367689833,1750895446944,-460.0,0.00019452,2]
[367689835,1750895446953,-580.77,0.00019452,2]
[367689838,1750895446962,-460.0,0.00019452,2]
[367689840,1750895446972,-774.21,0.00019452,2]
[367689841,1750895446983,-460.0,0.00019452,2]
[367689844,1750895446992,-982.39,0.00019452,2]
[367689846,1750895447002,-495.0,0.00019452,2]
[367689847,1750895447011,-460.0,0.00019452,2]
[367689849,1750895447020,-2506.09,0.00019452,2]
[367689851,1750895447028,-494.86,0.00019452,2]
[367689853,1750895447037,-460.0,0.00019452,2]
[367689854,1750895447046,-460.0,0.00019452,2]
[367689855,1750895447056,-245.23808075,0.00019452,2]
[367689858,1750895447065,-460.0,0.00019452,2]
[367689859,1750895447074,-2044.87,0.00019452,2]
[367689861,1750895447084,-297.02,0.00019452,2]
[367689863,1750895447093,-711.86,0.00019452,2]
[367689865,1750895447102,-460.0,0.00019452,2]
[367689867,1750895447111,-460.0,0.00019452,2]
[367689869,1750895447120,-460.0,0.00019452,2]
[367689871,1750895447129,-460.0,0.00019452,2]
[367689873,1750895447138,-151.0,0.000196,2]
[367689875,1750895447147,-587.0,0.00019629,2]
[367689877,1750895447156,-928.84657131,0.00019693,2]
[367689879,1750895447165,-460.0,0.00019726,2]
[367689881,1750895447174,-460.0,0.00019726,2]
[367689883,1750895447184,-818.77,0.00019726,2]
[367689885,1750895447193,-460.0,0.00019726,2]
[367689887,1750895447202,-460.0,0.00019726,2]
[367689889,1750895447211,-905.56,0.00019726,2]
[367689890,1750895447220,-930.61,0.00019726,2]
[367689891,1750895447230,-460.0,0.00019726,2]
[367689893,1750895447239,-580.77,0.00019726,2]
[367689895,1750895447248,-460.0,0.00019726,2]
[367689897,1750895447257,-774.21,0.00019726,2]
[367689899,1750895447266,-460.0,0.00019726,2]
[367689900,1750895447277,-982.39,0.00019726,2]
[367689903,1750895447287,-495.0,0.00019726,2]
[367689905,1750895447297,-460.0,0.00019726,2]
[367689906,1750895447308,-2506.09,0.00019726,2]
[367689908,1750895447317,-494.86,0.00019726,2]
[367689911,1750895447327,-460.0,0.00019726,2]
[367689912,1750895447335,-460.0,0.00019726,2]
[367689915,1750895447346,-460.0,0.00019726,2]
[367689916,1750895447356,-2044.87,0.00019726,2]
[367689919,1750895447365,-711.86,0.00019726,2]
[367689920,1750895447374,-460.0,0.00019726,2]
[367689923,1750895447383,-460.0,0.00019726,2]
[367689925,1750895447392,-533.91,0.00019726,2]
[367689927,1750895447402,-460.0,0.00019726,2]
[367689929,1750895447411,-177.794,0.00019741,2]
[367689931,1750895447420,-4399.36229448,0.000198,2]
[367689933,1750895447430,-1127.67210733,0.000198,2]
[367689934,1750895447439,-500.0,0.00019807,2]
[367689936,1750895447448,-151.0,0.00019807,2]
[367689938,1750895447458,-183.28015549,0.00019807,2]
[367689940,1750895447467,-500.0,0.00019807,2]
[367689943,1750895447476,-151.0,0.00019807,2]
[367689944,1750895447485,-151.0,0.00019807,2]
[367689947,1750895447495,-500.0,0.00019807,2]
[367689949,1750895447505,-500.0,0.00019807,2]
[367689950,1750895447514,-500.0,0.00019807,2]
[367689953,1750895447524,-151.0,0.00019807,2]
[367689954,1750895447533,-151.8409273,0.00019807,2]
[367689956,1750895447542,-151.0,0.00019807,2]
[367689959,1750895447552,-151.0,0.00019807,2]
[367689960,1750895447561,-152.14900843,0.00019807,2]
[367689962,1750895447571,-500.0,0.00019807,2]
[367689965,1750895447580,-500.0,0.00019807,2]
[367689967,1750895447589,-500.0,0.00019807,2]
[367689969,1750895447599,-500.0,0.00019807,2]
[367689971,1750895447608,-500.0,0.00019807,2]
[367689973,1750895447617,-500.0,0.00019807,2]
[367689975,1750895447627,-500.0,0.00019807,2]
[367689977,1750895447636,-500.0,0.00019807,2]
[367689979,1750895447645,-151.0,0.00019807,2]
[367689981,1750895447654,-151.0,0.00019807,2]
[367689982,1750895447663,-151.0,0.00019807,2]
[367689984,1750895447672,-151.0,0.00019807,2]
[367689986,1750895447682,-151.0,0.00019807,2]
[367689988,1750895447691,-151.0,0.00019807,2]
[367689990,1750895447700,-151.0,0.00019807,2]
[367689992,1750895447709,-151.0,0.00019807,2]
[367689994,1750895447719,-151.0,0.00019807,2]
[367689996,1750895447728,-500.0,0.00019819,2]
[367689998,1750895447738,-500.0,0.00019819,2]
[367690001,1750895447747,-500.0,0.00019819,2]
[367690003,1750895447757,-500.0,0.00019819,2]
[367690004,1750895447767,-500.0,0.00019819,2]
[367690007,1750895447776,-500.0,0.00019819,2]
[367690009,1750895447785,-500.0,0.00019819,2]
[367690011,1750895447794,-600.0,0.00019819,2]
[367690013,1750895447803,-500.0,0.0001982,2]
[367690015,1750895447812,-500.0,0.0001982,2]
[367690016,1750895447822,-500.0,0.0001982,2]
[367690018,1750895447831,-500.0,0.0001982,2]
[367690021,1750895447841,-500.0,0.0001982,2]
[367690023,1750895447851,-500.0,0.00019829,2]
[367690025,1750895447861,-500.0,0.00019829,2]
[367690027,1750895447870,-500.0,0.00019834,2]
[367690029,1750895447880,-198.0,0.00019834,2]
[367690031,1750895447889,-500.0,0.00019834,2]
[367690033,1750895447898,-151.0,0.00019834,2]
[367690035,1750895447907,-151.0,0.00019834,2]
[367690037,1750895447918,-500.0,0.00019834,2]
[367690039,1750895447927,-500.0,0.00019834,2]
[367690041,1750895447937,-500.0,0.00019834,2]
[367690043,1750895447946,-151.0,0.00019834,2]
[367690045,1750895447955,-151.0,0.00019834,2]
[367690047,1750895447966,-151.0,0.00019834,2]
[367690049,1750895447975,-500.0,0.00019834,2]
[367690051,1750895447988,-500.0,0.00019834,2]
[367690053,1750895447998,-500.0,0.00019834,2]
[367690055,1750895448007,-500.0,0.00019834,2]
[367690057,1750895448017,-500.0,0.00019834,2]
[367690059,1750895448027,-500.0,0.00019834,2]
[367690061,1750895448036,-500.0,0.00019834,2]
[367690063,1750895448045,-500.0,0.00019834,2]
[367690065,1750895448054,-151.0,0.00019834,2]
[367690067,1750895448064,-151.0,0.00019834,2]
[367690069,1750895448074,-151.0,0.00019834,2]
[367690071,1750895448084,-151.0,0.00019834,2]
[367690073,1750895448093,-151.0,0.00019834,2]
[367690075,1750895448102,-151.0,0.00019834,2]
[367690077,1750895448111,-222.968196,0.00019842,2]
[367690079,1750895448121,-222.968196,0.00019842,2]
[367690081,1750895448130,-500.0,0.00019862,2]
[367690083,1750895448139,-500.0,0.00019862,2]
[367690085,1750895448148,-151.0,0.00019862,2]
[367690087,1750895448157,-151.0,0.00019862,2]
[367690089,1750895448167,-500.0,0.00019862,2]
[367690091,1750895448176,-500.0,0.00019862,2]
[367690093,1750895448185,-500.0,0.00019862,2]
[367690095,1750895448195,-198.76709495,0.00019862,2]
[367690097,1750895448204,-151.0,0.00019862,2]
[367690099,1750895448214,-151.0,0.00019862,2]
[367690101,1750895448224,-500.0,0.00019862,2]
[367690103,1750895448234,-500.0,0.00019862,2]
[367690105,1750895448244,-500.0,0.00019862,2]
[367690107,1750895448253,-500.0,0.00019862,2]
[367690109,1750895448263,-500.0,0.00019862,2]
[367690111,1750895448272,-500.0,0.00019862,2]
[367690113,1750895448282,-500.0,0.00019862,2]
[367690115,1750895448291,-500.0,0.00019862,2]
[367690117,1750895448300,-151.0,0.00019862,2]
[367690119,1750895448309,-151.0,0.00019862,2]
[367690121,1750895448318,-151.0,0.00019862,2]
[367690123,1750895448328,-151.0,0.00019862,2]
[367690125,1750895448337,-151.0,0.00019862,2]
[367690127,1750895448346,-151.0,0.00019862,2]
[367690129,1750895448356,-500.0,0.00019869,2]
[367690131,1750895448365,-500.0,0.00019869,2]
[367690133,1750895448374,-500.0,0.00019869,2]
[367690135,1750895448383,-500.0,0.00019869,2]
[367690137,1750895448391,-500.0,0.00019869,2]
[367690139,1750895448400,-500.0,0.00019869,2]
[367690141,1750895448409,-500.0,0.00019869,2]
[367690143,1750895448418,-500.0,0.00019869,2]
[367690145,1750895448427,-500.0,0.00019869,2]
[367690147,1750895448437,-380.54770024,0.00019869,2]
[367690149,1750895448446,-500.0,0.00019869,2]
[367690151,1750895448455,-500.0,0.00019869,2]
[367690153,1750895448465,-500.0,0.00019869,2]
[367690155,1750895448474,-500.0,0.00019869,2]
[367690157,1750895448483,-500.0,0.00019869,2]
[367690159,1750895448492,-500.0,0.00019869,2]
[367690161,1750895448501,-500.0,0.00019873,2]
[367690163,1750895448510,-500.0,0.00019873,2]
[367690165,1750895448519,-500.0,0.00019873,2]
[367690167,1750895448528,-500.0,0.00019873,2]
[367690169,1750895448537,-500.0,0.00019889,2]
[367690171,1750895448546,-151.0,0.00019889,2]
[367690173,1750895448555,-151.0,0.00019889,2]
[367690175,1750895448565,-500.0,0.00019889,2]
[367690177,1750895448574,-500.0,0.00019889,2]
[367690179,1750895448583,-164.70744157,0.00019889,2]
[367690181,1750895448592,-500.0,0.00019889,2]
[367690183,1750895448602,-561.55586604,0.00019889,2]
[367690185,1750895448612,-151.0,0.00019889,2]
[367690187,1750895448622,-500.0,0.00019889,2]
[367690189,1750895448631,-500.0,0.00019889,2]
[367690191,1750895448641,-500.0,0.00019889,2]
[367690193,1750895448651,-500.0,0.00019889,2]
[367690195,1750895448660,-500.0,0.00019889,2]
[367690197,1750895448670,-292.00950483,0.00019889,2]
[367690199,1750895448679,-192.4422019,0.00019889,2]
[367690201,1750895448688,-151.0,0.00019889,2]
[367690203,1750895448698,-151.0,0.00019889,2]
[367690205,1750895448708,-151.0,0.00019889,2]
[367690207,1750895448724,-28052.00633228,0.000199,2]
[367690209,1750895448733,-6951.82973722,0.000199,2]
[367690211,1750895448744,-1758114.57847816,0.000199,7]
[367690228,1750895448898,-270.13541551,0.000199,7]
[367690257,1750895449369,-182.75399511,0.00016438,2]
[367690259,1750895449379,-286.18800489,0.00016438,2]
[367690262,1750895449391,-173.81199511,0.00016438,2]
[367690264,1750895449400,-131.53426713,0.00016438,2]
[367690266,1750895449411,-258.63431274,0.00016438,2]
[367690268,1750895449420,-351.51880224,0.00016438,2]
[367696026,1750896018236,1473.28,0.000228,30]
[367696027,1750896063005,524.719891,0.00013699,2]
[367696029,1750896092510,200.0,0.00022234,120]
[367696030,1750896211136,200.0,0.00022715,120]
[367696031,1750896271385,200.0,0.00022911,120]
[367696032,1750896391803,200.0,0.00022444,120]
[367696033,1750896427455,1589.13110453,0.00015446,2]
[367696034,1750896427478,20000.0,0.00015446,2]
[367696035,1750896427500,3310.86889547,0.00015446,2]
[367696036,1750896511576,200.0,0.0002223,120]
[367696054,1750896631814,200.0,0.00022154,120]
[367696055,1750896631917,-300.0,0.00016336,2]
[367696056,1750896631926,-1200.0,0.00016336,2]
[367696057,1750896631936,-268.05406752,0.00016337,2]
[367696058,1750896631946,-47756.72671211,0.00016337,2]
[367696059,1750896631964,-986.02,0.00016337,2]
[367696061,1750896632008,-1429.50718397,0.00016337,2]
[367696071,1750896632052,-57550.52117655,0.00016337,2]
[367696074,1750896632063,-4463.71083206,0.00016337,2]
[367696140,1750896637857,-217.46207289,0.00016336,2]
[367696141,1750896637866,-500.0,0.00016336,2]
[367696143,1750896637876,-48.55355861,0.00016336,2]
[367696145,1750896637892,-451.44644139,0.00016336,2]
[367696146,1750896637902,-500.0,0.00016336,2]
[367696148,1750896637911,-500.0,0.00016336,2]
[367696150,1750896637921,-500.0,0.00016336,2]
[367696151,1750896637930,-362.19665965,0.00016336,2]
[367696153,1750896637939,-362.82002461,0.00016336,2]
[367696154,1750896637949,-580.04670661,0.00016336,2]
[367696156,1750896637959,-500.0,0.00016336,2]
[367696157,1750896637968,-500.0,0.00016336,2]
[367696159,1750896637977,-409.53991634,0.00016336,2]
[367696160,1750896637987,-80.35394249,0.00016336,2]
[367696162,1750896637999,-419.64605751,0.00016336,2]
[367696163,1750896638008,-500.0,0.00016336,2]
[367696164,1750896638017,-500.0,0.00016336,2]
[367696165,1750896638027,-181.41963322,0.00016336,2]
[367696166,1750896638039,-81.77090523,0.00016336,2]
[367696167,1750896638052,-215.33694048,0.00016336,2]
[367696168,1750896638062,-500.0,0.00016336,2]
[367696169,1750896638072,-500.0,0.00016336,2]
[367696170,1750896638081,-8349.59634601,0.00016337,2]
[367696171,1750896638093,-9636.21941732,0.00016337,2]
[367696172,1750896638106,-573.41119982,0.00016337,2]
[367696173,1750896638118,-7637.38133325,0.00016337,2]
[367696174,1750896638130,-257.3189741,0.00016337,2]
[367696175,1750896638153,-2448.31875038,0.00016337,2]
[367696176,1750896638165,-2750.73635981,0.00016337,2]
[367696177,1750896638177,-2061.57370036,0.00016337,2]
[367696178,1750896638188,-644.33175654,0.00016337,2]
[367696179,1750896638200,-12072.8912848,0.00016337,2]
[367696218,1750896640189,-507.81705216,0.00016337,2]
[367696221,1750896640201,-46043.62228076,0.00016337,2]
[367696222,1750896640211,-5361.5034929,0.00016437,2]
[367696224,1750896640221,-417.87977399,0.00016438,2]
[367696226,1750896640230,-460.0,0.00016438,2]
[367696228,1750896640239,-470.15251007,0.00016438,2]
[367696230,1750896640249,-460.0,0.00016438,2]
[367696232,1750896640258,-460.0,0.00016438,2]
[367696234,1750896640268,-460.0,0.00016438,2]
[367696236,1750896640277,-245.14961304,0.00016438,2]
[367696237,1750896640287,-460.0,0.00016438,2]
[367696239,1750896640296,-391.0509089,0.00016438,2]
[367696241,1750896640305,-460.0,0.00016438,2]
[367696243,1750896640315,-460.0,0.00016438,2]
[367696245,1750896640324,-460.0,0.00016438,2]
[367696247,1750896640333,-460.0,0.00016438,2]
[367696248,1750896640342,-460.0,0.00016438,2]
[367696250,1750896640351,-460.0,0.00016438,2]
[367696252,1750896640361,-288.64732531,0.00016438,2]
[367696254,1750896640371,-438.77245709,0.00016438,2]
[367696256,1750896640380,-460.0,0.00016438,2]
[367696258,1750896640389,-460.0,0.00016438,2]
[367696260,1750896640398,-460.0,0.00016438,2]
[367696261,1750896640408,-381.22105681,0.00016438,2]
[367696263,1750896640417,-460.0,0.00016438,2]
[367696265,1750896640426,-460.0,0.00016438,2]
[367696267,1750896640436,-460.0,0.00016438,2]
[367696269,1750896640445,-460.0,0.00016438,2]
[367696271,1750896640454,-460.0,0.00016438,2]
[367696273,1750896640464,-535.03417453,0.00016438,2]
[367696274,1750896640473,-460.0,0.00016438,2]
[367696276,1750896640482,-460.0,0.00016438,2]
[367696278,1750896640492,-460.0,0.00016438,2]
[367696280,1750896640501,-460.78246173,0.00016438,2]
[367696282,1750896640511,-460.0,0.00016438,2]
[367696284,1750896640521,-460.0,0.00016438,2]
[367696286,1750896640530,-460.0,0.00016438,2]
[367696288,1750896640538,-460.0,0.00016438,2]
[367696289,1750896640548,-460.0,0.00016438,2]
[367696291,1750896640558,-460.0,0.00016438,2]
[367696293,1750896640567,-460.0,0.00016438,2]
[367696295,1750896640576,-460.0,0.00016438,2]
[367696297,1750896640585,-460.0,0.00016438,2]
[367696299,1750896640597,-460.0,0.00016438,2]
[367696301,1750896640606,-460.0,0.00016438,2]
[367696303,1750896640615,-460.0,0.00016438,2]
[367696304,1750896640625,-460.0,0.00016438,2]
[367696306,1750896640639,-460.0,0.00016438,2]
[367696308,1750896640648,-460.0,0.00016438,2]
[367696310,1750896640657,-460.0,0.00016438,2]
[367696312,1750896640666,-460.0,0.00016438,2]
[367696314,1750896640676,-460.0,0.00016438,2]
[367696316,1750896640685,-460.0,0.00016438,2]
[367696318,1750896640695,-460.0,0.00016438,2]
[367696320,1750896640704,-460.0,0.00016438,2]
[367696321,1750896640715,-460.0,0.00016438,2]
[367696323,1750896640725,-460.0,0.00016438,2]
[367696325,1750896640734,-460.0,0.00016438,2]
[367696327,1750896640744,-445.1151962,0.00016438,2]
[367696329,1750896640753,-222.78559439,0.00016438,2]
[367696331,1750896640764,-460.0,0.00016438,2]
[367696333,1750896640773,-460.0,0.00016438,2]
[367696335,1750896640782,-460.0,0.00016438,2]
[367696336,1750896640791,-460.0,0.00016438,2]
[367696338,1750896640800,-466.03,0.00016438,2]
[367696340,1750896640810,-460.0,0.00016438,2]
[367696342,1750896640820,-460.0,0.00016438,2]
[367696344,1750896640829,-460.0,0.00016438,2]
[367696346,1750896640838,-460.0,0.00016438,2]
[367696348,1750896640848,-460.0,0.00016438,2]
[367696349,1750896640857,-460.0,0.00016438,2]
[367696351,1750896640867,-460.0,0.00016438,2]
[367696353,1750896640876,-467.51395587,0.00016438,2]
[367696355,1750896640886,-460.0,0.00016438,2]
[367696357,1750896640895,-460.0,0.00016438,2]
[367696359,1750896640905,-460.0,0.00016438,2]
[367696361,1750896640914,-460.0,0.00016438,2]
[367696363,1750896640923,-460.0,0.00016438,2]
[367696364,1750896640932,-460.0,0.00016438,2]
[367696366,1750896640941,-460.0,0.00016438,2]
[367696368,1750896640950,-582.85992752,0.00016438,2]
[367696370,1750896640960,-460.0,0.00016438,2]
[367696372,1750896640969,-460.0,0.00016438,2]
[367696373,1750896640978,-460.0,0.00016438,2]
[367696375,1750896640988,-460.0,0.00016438,2]
[367696377,1750896640998,-460.0,0.00016438,2]
[367696379,1750896641007,-460.0,0.00016438,2]
[367696381,1750896641017,-460.0,0.00016438,2]
[367696383,1750896641026,-460.0,0.00016438,2]
[367696385,1750896641036,-460.0,0.00016438,2]
[367696387,1750896641045,-460.0,0.00016438,2]
[367696389,1750896641054,-460.0,0.00016438,2]
[367696390,1750896641063,-460.0,0.00016438,2]
[367696392,1750896641072,-460.0,0.00016438,2]
[367696394,1750896641082,-460.0,0.00016438,2]
[367696396,1750896641091,-460.0,0.00016438,2]
[367696398,1750896641101,-460.0,0.00016438,2]
[367696400,1750896641110,-353.91445612,0.00016438,2]
[367696402,1750896641119,-460.0,0.00016438,2]
[367696403,1750896641127,-460.0,0.00016438,2]
[367696405,1750896641137,-460.0,0.00016438,2]
[367696407,1750896641146,-450.52023403,0.00016438,2]
[367696409,1750896641155,-460.0,0.00016438,2]
[367696411,1750896641165,-460.0,0.00016438,2]
[367696413,1750896641174,-460.0,0.00016438,2]
[367696415,1750896641183,-460.0,0.00016438,2]
[367696417,1750896641192,-460.0,0.00016438,2]
[367696418,1750896641201,-460.0,0.00016438,2]
[367696420,1750896641210,-460.0,0.00016438,2]
[367696422,1750896641220,-460.0,0.00016438,2]
[367696424,1750896641229,-460.0,0.00016438,2]
[367696426,1750896641239,-460.0,0.00016438,2]
[367696428,1750896641248,-460.0,0.00016438,2]
[367696430,1750896641257,-460.0,0.00016438,2]
[367696432,1750896641266,-460.0,0.00016438,2]
[367696433,1750896641275,-460.0,0.00016438,2]
[367696435,1750896641284,-460.0,0.00016438,2]
[367696437,1750896641294,-548.44906597,0.00016438,2]
[367696439,1750896641305,-460.0,0.00016438,2]
[367696441,1750896641314,-460.0,0.00016438,2]
[367696443,1750896641323,-460.0,0.00016438,2]
[367696445,1750896641333,-460.0,0.00016438,2]
[367696447,1750896641342,-460.0,0.00016438,2]
[367696449,1750896641351,-460.0,0.00016438,2]
[367696451,1750896641360,-460.0,0.00016438,2]
[367696452,1750896641370,-460.0,0.00016438,2]
[367696454,1750896641379,-460.0,0.00016438,2]
[367696456,1750896641389,-460.0,0.00016438,2]
[367696458,1750896641398,-460.0,0.00016438,2]
[367696460,1750896641407,-468.17266732,0.00016438,2]
[367696462,1750896641416,-460.0,0.00016438,2]
[367696464,1750896641426,-460.0,0.00016438,2]
[367696466,1750896641435,-460.0,0.00016438,2]
[367696467,1750896641444,-460.0,0.00016438,2]
[367696469,1750896641454,-500.0,0.00016438,2]
[367696471,1750896641463,-460.0,0.00016438,2]
[367696473,1750896641472,-460.0,0.00016438,2]
[367696475,1750896641481,-460.0,0.00016438,2]
[367696477,1750896641490,-460.0,0.00016438,2]
[367696479,1750896641499,-460.0,0.00016438,2]
[367696480,1750896641509,-460.0,0.00016438,2]
[367696482,1750896641519,-460.0,0.00016438,2]
[367696484,1750896641528,-460.0,0.00016438,2]
[367696486,1750896641538,-460.0,0.00016438,2]
[367696488,1750896641548,-460.0,0.00016438,2]
[367696490,1750896641557,-460.0,0.00016438,2]
[367696492,1750896641567,-252.62684077,0.00016438,2]
[367696494,1750896641576,-460.0,0.00016438,2]
[367696496,1750896641585,-460.0,0.00016438,2]
[367696497,1750896641594,-460.0,0.00016438,2]
[367696499,1750896641604,-460.0,0.00016438,2]
[367696501,1750896641613,-460.0,0.00016438,2]
[367696503,1750896641623,-211.62673082,0.00016438,2]
[367696505,1750896641635,-460.0,0.00016438,2]
[367696507,1750896641644,-460.0,0.00016438,2]
[367696509,1750896641654,-460.0,0.00016438,2]
[367696511,1750896641663,-460.0,0.00016438,2]
[367696512,1750896641672,-460.0,0.00016438,2]
[367696514,1750896641682,-460.0,0.00016438,2]
[367696516,1750896641691,-460.0,0.00016438,2]
[367696518,1750896641701,-460.0,0.00016438,2]
[367696520,1750896641710,-242.23262527,0.00016438,2]
[367696522,1750896641720,-460.0,0.00016438,2]
[367696524,1750896641730,-430.0,0.00016438,2]
[367696526,1750896641739,-460.0,0.00016438,2]
[367696527,1750896641748,-460.0,0.00016438,2]
[367696529,1750896641759,-460.0,0.00016438,2]
[367696531,1750896641769,-535.81381949,0.00016438,2]
[367696533,1750896641779,-473.08945643,0.00016438,2]
[367696535,1750896641788,-460.0,0.00016438,2]
[367696537,1750896641797,-460.0,0.00016438,2]
[367696539,1750896641807,-460.0,0.00016438,2]
[367696541,1750896641816,-460.0,0.00016438,2]
[367696543,1750896641826,-346.74669501,0.00016438,2]
[367696545,1750896641835,-460.0,0.00016438,2]
[367696546,1750896641844,-460.0,0.00016438,2]
[367696548,1750896641853,-460.0,0.00016438,2]